{"text_format":"1","workbook":"xlsx","n_sheets":2,"sheets":["Pasiūlymas","Subtiekėjai ir priedai"],"not_rendered":{"charts":0,"images":0,"macros":1,"external_links":0,"defined_names":0,"comments":0,"pivot_tables":0},"unopened":[],"bounds":{"document_bytes":16777216,"sheet_cells":100000,"rows_first":2000,"rows_last":500,"rows_between":2000,"halvings":0,"cell_chars":16384,"cell_head_chars":4096},"cells_cut":0,"cells_raw":0,"read":"whole","date_system":"1900"}

{"sheet":"Pasiūlymas","index":0,"n_rows":247,"n_cols":7,"rows_kept":247,"cut":false,"hidden":false,"merged":[[25,0,25,5],[26,0,26,5],[27,0,27,5],[28,0,28,5],[29,0,29,2],[29,3,29,5],[20,0,20,1],[20,2,20,5],[22,0,22,5],[23,0,23,5],[24,0,24,5],[17,0,17,1],[17,2,17,5],[18,0,18,1],[18,2,18,5],[19,0,19,1],[19,2,19,5],[14,0,14,1],[14,2,14,5],[15,0,15,1],[15,2,15,5],[16,0,16,1],[16,2,16,5],[11,0,11,1],[11,2,11,5],[12,0,12,1],[12,2,12,5],[13,0,13,1],[13,2,13,5]]}
[]
["PIRKIMO SĄLYGŲ PRIEDAS \"PASIŪLYMŲ FORMA\""]
[]
["ELEKTROS INSTALIACINĖS MEDŽIAGOS, ŠVIESTUVAI, LEMPOS"]
[]
["Kam:","VšĮ LSMU Kauno ligoninė"]
[]
["Data:","2022-03-24"]
["Nr.:"]
["Vieta:","Kaunas"]
[]
["Tiekėjo pavadinimas / Ūkio subjektų grupės nariai:",null,"UAB Skiraida"]
["Tiekėjo kodas (-ai):",null,135233855]
["Tiekėjo adresas (-ai):",null,"A.Juozapavičiaus pr. 44, Kaunas"]
["Tiekėjo PVM mokėtojo kodas(-ai):",null,"LT352338515"]
["Tiekėjo / Ūkio subjektų grupės atsakingo partnerio sąskaitos numeris, banko pavadinimas ir banko kodas (-ai):",null,"LT237044060003220860, AB SEB bankas, 70440"]
["Asmens atsakingo už pasiūlymą vardas, pavardė:",null,"Mindaugas Bumbulis"]
["Asmens atsakingo už pasiūlymą telefono numeris, el. pašto adresas:",null,"8-600-42024, mindaugas@skiraida.lt"]
["Tiekėjo / Ūkio subjektų grupės, laimėjimo atveju, pasirašančio sutartį asmens vardas, pavardė, pareigos:",null,"Direktorius Jonas Jurevičius"]
["Tiekėjo / Ūkio subjektų grupės, laimėjimo atveju, už sutarties vykdymą atsakingo asmens vardas, pavardė, telefono numeris, elektroninio pašto adresas:",null,"8-686-36030, jonas@skiraida.lt"]
["(1) Tiekėjo / Ūkio subjektų grupės narių, (2) ūkio subjektų, kurių pajėgumais remiamasi, ir (3) jei pašalinimo pagrindai taikomi visiems subtiekėjams - subtiekėjų, kolegialaus priežiūros organo (Stebėtojų tarybos) ir (ar) kolegialaus valdymo organo (Valdybos) narių sąrašas (jei sudaryta) ir (ar) asmuo, kuriam suteikti VPĮ 46 str. 2 d. 2 p. numatyti įgaliojimai",null,null,null,null,null,{"$f":"IF((SUMPRODUCT(--(C21=\"\"))>0), \"Privaloma užpildyti, kai taikomi pašalinimo pagrindai\", \"\")","v":"Privaloma užpildyti, kai taikomi pašalinimo pagrindai"}]
[]
["Tiekėjo patvirtinimai:"]
["1. Šiuo pasiūlymu pažymime, kad sutinkame su visomi pirkimo sąlygomis, nustatytomis:"]
["1.1. viešojo pirkimo dokumentuose"]
["1.2. kituose pirkimo dokumentuose (jų paaiškinimuose, papildymuose)."]
["2. Patvirtiname, kad informacija ir duomenys, pateikti pasiūlyme, yra teisingi ir apima viską, ko reikia tinkamam sutarties įvykdymui"]
["3. Patvirtiname, kad jei pasiūlyme nenurodyti kolegialaus priežiūros/valdymo organų nariai, šie organai juridiniuose asmenyse nėra sudaryti (taikoma, kai pirkimo dokumentuose nustatyti pašalinimo pagrindai)."]
["4. Pasiūlymas galioja iki termino, nustatyto pirkimo dokumentuose."]
["5. Tais atvejais, kai pagal galiojančius teisės aktus tiekėjui nereikia mokėti PVM, jis nurodo priežastis, dėl kurių PVM nemoka:"]
["6. Tiekėjas kainas pateikia, nurodydamas ne daugiau skaičių po kablelio, nei leidžiama pirkimo dokumentuose."]
["1. DALIS","ELEKTROS KABELIAI, JUNGTYS, PRIEDAI"]
[]
["Tiekėjo pasiūlymas:"]
["Nr.","Pavadinimas","Kiekis","Mato vienetas","Kaina be PVM, Eur","Suma be PVM, Eur","Siūlomi produktai"]
["1.","Elektros kabeliai, jungtys, priedai"]
["1.1.","PVC izol.,  plokščias 3x1,5 mm2 , monolitas, Cu",30000,"m",0.55000000000000004,{"$f":"IF(ISBLANK(E37),\"\", PRODUCT(C37,E37))","v":16500},"YDYp 3x1,5"]
["1.2.","PVC izol. , plokščias 3x2,5 mm2, monolitas, Cu",20000,"m",0.86,17200,"YDYp 3x2,5"]
["1.3.","PVC izol.,plokščias  3x4 mm2, monolitas",700,"m",1.48,1036,"YDYp 3x4"]
["1.4.","PVC izol., V plokščias 5x2,5 mm2, monolitas, Cu",800,"m",0.96,768,"YDYp 5x2,5"]
["1.5.","PVC izol., plokščias 5x4 mm2, monolitas, Cu",800,"m",1.07,856,"YDYp 5x4"]
["1.6.","PVC izol., plokščias 5x6 mm2, monolitas, Cu",600,"m",1.42,852,"YDYp 5x6"]
["1.7.","PVC izol., 5x10 mm2, monolitas, Cu",800,"m",5.64,4512,"CYKY 5x10"]
["1.8.","PVC izol. gyslos daugiavielės, Cu 3x1,5 mm2, lankstus",800,"m",0.67,536,"H03VV-F 3x1,5"]
["1.9.","PVC izol. gyslos daugiavielės, Cu 3x2,5 mm2, lankstus",800,"m",1.08,864,"H03VV-F 3x2,5"]
["1.10.","PVC izol.,  plokščias 3x1,0 mm2 monolitas, Cu",400,"m",0.39,156,"YDYp 3x1"]
["1.11.","Daugiavielis laidas lankstus geltonai žalias 1x6 mm2",300,"m",0.68,204.00000000000003,"H07V-K 1x6"]
["1.12.","PVC izol., 5x4 mm2, monolitas, Cu",600,"m",2.36,1416,"CYKY 5x4"]
["1.13.","PVC izol., 5x6 mm2, monolitas, Cu",600,"m",3.36,2016,"CYKY 5x6"]
["1.14.","PVC izol., 5x10 mm2, monolitas, Cu",600,"m",5.64,3384,"CYKY 5x10"]
["1.15.","Izoliacinė juosta vini-tape",400,"vnt",0.94,376,"Vini-Tape PVC 19mmx0,11mmx20m"]
["1.16.","Užveržimo dirželiai nailoniniai 2,5[+-1]x100[+-10] mm",10000,"vnt",0.01,100,"Dirželis 100x2,5"]
["1.17.","Užveržimo dirželiai nailoniniai 4,8[+-2]x180[+-25] mm",60000,"vnt",0.03,1800,"Dirželis 203x4,6"]
["1.18.","Užveržimo dirželiai nailoniniai 4,8[+-2]x300[+-20] mm",10000,"vnt",0.04,400,"Dirželis 302x4,8"]
["1.19.","Užveržimo dirželiai nailoniniai 4,8[+-2]x380[+-20] mm",10000,"vnt",0.05,500,"Dirželis 368x4,8"]
["1.20.","Dirželio laikiklis prisukamas 7,8(+-3) mm",10000,"vnt",0.05,500,"Laikiklis 7,8mm"]
["1.21.","Kabelio laikiklis 3-5 2*15 baltas",5000,"vnt",0.02,100,"Laikiklis 3-5"]
["1.22.","Kabelio laikiklis 5x8 2*25 baltas",5000,"vnt",0.02,100,"Laikiklis 5x8"]
["1.23.","Kabelio laikiklis 6x10 2*25 baltas",3000,"vnt",0.02,60,"Laikiklis 6x10"]
["1.24.","Instaliacinis lovelis 15(+-2)x10(+-2) , ilgis 2000(+-200)mm",400,"vnt",0.36,144,"Lovelis 15x10"]
["1.25.","Instaliacinis lovelis 15(+-2)x15(+-2) , ilgis 2000(+-200)mm",400,"vnt",0.39,156,"Lovelis 15x15"]
["1.26.","Instaliacinis lovelis 20(+-2)x10(+-2) , ilgis 2000(+-200)mm",400,"vnt",0.59,236,"Lovelis 20x10"]
["1.27.","Instaliacinis lovelis 25(+-2)x20(+-2) , ilgis 2000(+-200)mm",400,"vnt",0.79,316,"Lovelis 25x20"]
["1.28.","Instaliacinis lovelis 40(+-2)x20(+-2) , ilgis 2000(+-200)mm",200,"vnt",1.33,266,"Lovelis 40x20"]
["1.29.","Instaliacinis lovelis 40(+-2)x40(+-2) , ilgis 2000(+-200)mm",200,"vnt",1.37,274,"Lovelis 40x40"]
["1.30.","Kanalas grindinis 50(+-10)x10(+-2)mm  , ilgis 2000(+-200)mm",200,"vnt",1.81,362,"Lovelis 50x10, grindinis"]
["1.31.","Kanalas su dangčiu 50x100mm DLP-S  ,",150,"m",5.86,879,"Lovelis DLP-S 50x100"]
["1.32.","Dangtelis galinis 50x100mm DLP-S",300,"vnt",1.1100000000000001,333.00000000000006,"50x100 galinis dangtelis"]
["1.33.","Kištukinis lizdas  1 vietos",150,"vnt",1.86,{"$f":"IF(ISBLANK(E69),\"\", PRODUCT(C69,E69))","v":279},"Lizdas 1 vietos"]
["1.34.","Kištukinis lizdas 3 vietų",100,"vnt",8.65,865,"Lizdas 23 vietų"]
["1.35.","Kabeliniai cinkuoto metalo loveliai   50[+-5]x100[+-20] mm,  ilgis 2000(+-200)mm",100,"vnt",3.38,338,"Lovelis KGR100H45/2"]
["1.36.","Gofruotas vamzdis 12(+-2)/9 (+-2)",300,"m",0.12,36,"Gofruotas vamzdis 12/9"]
["1.37.","Gofruotas vamzdis 16(+-2) 320N su viela",300,"m",0.26,78,"Gofruotas vamzdis 16"]
["1.38.","Gofruotas vamzdis  20(+-2) 320N su viela",300,"m",0.32,96,"Gofruotas vamzdis 20"]
["1.39.","Gofruotas vamzdis  25(+-2) 320N su viela",300,"m",0.38,114,"Gofruotas vamzdis 25"]
["1.40.","Gofruotas vamzdis  32(+-2) 320N su viela",300,"m",0.52,156,"Gofruotas vamzdis 32"]
["1.41.","Kabelinio cinkuoto metalo lovelių tvirtinimo kampas  L 200[+-5] mm",300,"vnt",1.44,432,"Lentyna WW200"]
["1.42.","Laidas telefoninis TKPV 1x2x0,5",600,"m",0.19,114,"Laidas TKPV 1x2x0,5"]
["1.43.","Laidas telefoninis TKPV 1x4x0,5",1000,"m",0.26,260,"Laidas TKPV 1x4x0,5"]
["1.44.","Koksalinis kabelis 75 Ω",600,"m",0.19,114,"Kabelis RG6U"]
["1.45.","Kabelis UTP, 5 kategorija",50000,"m",0.28999999999999998,14499.999999999998,"Kabelis UTP CAT5"]
["1.46.","Laidų jungtis 5x0,2-4mm² 32A/450V Wago atlenkiama",600,"vnt",0.49,294,"Jungtis 5x0,2-4mm Wago"]
["1.47.","Laidų jungtis 2x0,2-4mm² 32A/450V Wago atlenkiama",1000,"vnt",0.25,250,"Jungtis 2x0,2-4mm Wago"]
["1.48.","Laidų jungtis 3x0,2-4mm² 32A/450V atlenkiama",1000,"vnt",0.32,320,"Jungtis 3x0,2-4mm Wago"]
["1.49.","Gnybtas 12(+-2)x10mm²",100,"vnt",0.75,75,"Gnybtas 12x10mm²"]
["1.50.","Gnybtas 12(+-2)x16mm²",100,"vnt",1.05,105,"Gnybtas 12x16mm²"]
["1.51.","Gnybtas 12(+-2)x2,5-4mm²",100,"vnt",0.45,45,"Gnybtas 12x2,5-4mm²"]
["1.52.","Gnybtas 12(+-2)x6mm²",100,"vnt",0.5,50,"Gnybtas 12x6mm²"]
["1.53.","Gnybtas 12(+-2)x25mm²",50,"vnt",3.5,175,"Gnybtas 12x25mm²"]
["1.54.","Gnybtas KE16-1 1,5-16mm² Al/Cu gelt./žalias",200,"vnt",1.52,304,"KE16-1 1,5-16 gelt-žalias"]
["1.55.","Gnybtas KE16-1 1,5-16mm² Al/Cu mėlynas",200,"vnt",1.52,304,"KE16-1 1,5-16 mėlynas"]
["1.56.","Gnybtas KE50-1 2,5-50mm² Al/Cu gelt./žalias",100,"vnt",1.81,181,"KE50-1 2,5-50 gelt-žalias"]
["1.57.","Gnybtas KE50-1 2,5-50mm² Al/Cu mėlynas",100,"vnt",1.81,181,"KE50-1 2,5-50 mėlynas"]
["1.58.","Gnybtas KE50-1 2,5-50mm² Al/Cu pilkas",100,"vnt",1.81,181,"KE50-1 2,5-50 pilkas"]
["1.59.","Gnybtas KE16-1 1,5-16mm² Al/Cu pilkas",200,"vnt",1.52,304,"KE16-1 1,5-16 pilkas"]
["1.60.","VARINIS JĖGOS KABELIS SU PVC IZOLIACIJA CYKY 5X16",200,"m",6.72,1344,"Kabelis CYKY 5x16"]
[null,null,null,null,"Suma be PVM",{"$f":"IF((SUMPRODUCT(--(F37:F96=\"\"))>0), \"\", SUM(F37:F96))","v":78697},{"$f":"IF((SUMPRODUCT(--(F37:F96=\"\"))>0), \"Neužpildytos visų objektų kainos\", \"\")","v":""}]
[null,null,null,null,"PVM suma",{"$f":"(F97*1.21)-F97","v":16526.369999999995}]
[null,null,null,null,"Suma su PVM",{"$f":"IF(ISBLANK(F98), \"\", SUM(F97:F98))","v":95223.37}]
[]
[]
[]
["2. DALIS","ELEKTROS INSTALIACINĖS MEDŽIAGOS, JUNGIKLIAI, ROZETĖS"]
[]
["Tiekėjo pasiūlymas:"]
["Nr.","Pavadinimas","Kiekis","Mato vienetas","Kaina be PVM, Eur","Suma be PVM, Eur","Siūlomi produktai"]
["2.","Elektros instaliacinės medžiagos, jungikliai, rozetės"]
["2.1.","Vienfazis, I atj. 6 kA, In 6  A, „C“",60,"vnt",1.39,{"$f":"IF(ISBLANK(E108),\"\", PRODUCT(C108,E108))","v":83.399999999999991},"FB1-63 1P C  6A 6kA"]
["2.2.","Vienfazis, I atj. 6kA, In 10 A, „C“",150,"vnt",1.39,208.49999999999997,"FB1-63 1P C  10A 6kA"]
["2.3.","Vienfazis, I atj.  6 kA, In 16 A, „C\"",200,"vnt",1.39,278,"FB1-63 1P C  16A 6kA"]
["2.4.","Vienfazis, I atj.  6 kA, In 20 A, „C“",150,"vnt",1.39,208.49999999999997,"FB1-63 1P C  20A 6kA"]
["2.5.","Trifazis, I atj.  6 kA, In 6  A, „C“",40,"vnt",3.94,157.6,"FB1-63 3P C  6A 6kA"]
["2.6.","Trifazis, I atj. 6 kA, In 10 A, „C“",60,"vnt",3.94,236.4,"FB1-63 3P C  10A 6kA"]
["2.7.","Trifazis, I atj. 6 kA, In 16 A, „C“",100,"vnt",3.94,394,"FB1-63 3P C  16A 6kA"]
["2.8.","Trifazis, I atj. 6 kA, In 20 A, „C“",100,"vnt",3.94,394,"FB1-63 3P C  20A 6kA"]
["2.9.","Trifazis, I atj. 6 kA, In 32 A, „C“",60,"vnt",4.6500000000000004,279,"FB1-63 3P C  32A 6kA"]
["2.10.","Trifazis, I atj.  6 kA, In 40 A, „C“",50,"vnt",4.6500000000000004,232.50000000000003,"FB1-63 3P C  40A 6kA"]
["2.11.","Trifazis, I atj.  6 kA, In 63  A , „C“",40,"vnt",4.6500000000000004,186,"FB1-63 3P C  63A 6kA"]
["2.12.","Apsauginis išjungėjas .Vienfazė, 2P, IN  10 A, 30 mA",30,"vnt",8.74,262.2,"FPR1 2P 10A 30mA"]
["2.13.","Apsauginis išjungėjas. Vienfazė, 2P, IN  16 A, 30 mA",30,"vnt",9.7200000000000006,291.60000000000002,"FPR1 2P 16A 30mA"]
["2.14.","Apsauginis išjungėjas. Vienfazė, 2P, IN  20 A, 30 mA",30,"vnt",8.74,262.2,"FPR1 2P 20A 30mA"]
["2.15.","Apsauginis išjungėjas. Vienfazė, 2P, IN  25 A, 30 mA",30,"vnt",9.7200000000000006,291.60000000000002,"FPR1 2P 25A 30mA"]
["2.16.","Apsauginis išjungėjas. Vienfazė, 2P, IN  40 A, 30 mA",10,"vnt",9.7200000000000006,97.2,"FPR1 2P 40A 30mA"]
["2.17.","Apsauginis išjungėjas. Trifazis,  4P, IN 10 A, 30 mA",20,"vnt",14.12,282.39999999999998,"FPR1 4P 10A 30mA"]
["2.18.","Apsauginis išjungėjas. Trifazis,  4P, IN 16 A, 30 mA",40,"vnt",14.12,564.79999999999995,"FPR1 4P 16A 30mA"]
["2.19.","Apsauginis išjungėjas. Trifazis,  4P, IN 20 A, 30 mA",40,"vnt",15.23,609.20000000000005,"FPR1 4P 20A 30mA"]
["2.20.","Apsauginis išjungėjas. Trifazis,  4P, IN 32 A, 30 mA",40,"vnt",14.12,564.79999999999995,"FPR1 4P 32A 30mA"]
["2.21.","Apsauginis išjungėjas. Trifazis,  4P, IN 40 A, 30 mA",30,"vnt",15.23,456.90000000000003,"FPR1 4P 40A 30mA"]
["2.22.","Variklių paleidimo kontaktoriai su šilumine rele. Varikliui iki 1 kW",10,"vnt",21.62,216.20000000000002,"MKS1TM-2,5 (1,6-2,5A)"]
["2.23.","Variklių paleidimo kontaktoriai su šilumine rele. Varikliui  1-2  kW",10,"vnt",21.62,216.20000000000002,"MKS1TM-4 (2,5-4A)"]
["2.24.","Variklių paleidimo kontaktoriai su šilumine rele. Varikliui iki 2-3 kW",10,"vnt",21.62,216.20000000000002,"MKS1TM-6,3 (4-6,3A)"]
["2.25.","Variklių paleidimo kontaktoriai su šilumine rele. Varikliui iki 3-4 kW",10,"vnt",21.61,216.1,"MKS1TM-10 (6,3-10A)"]
["2.26.","Foto daviklis, valdymo galia iki 1,5 kW",20,"vnt",19.22,384.4,"Night-Matic 2000 Steinel"]
["2.27.","Judesio daviklis valdymo galia iki 1,5 kW",40,"vnt",4.78,191.20000000000002,"Daviklis CR-CR1000-00 GTV"]
["2.28.","Saugikliai PR 63",40,"vnt",2.11,84.399999999999991,"Saugiklis PR 63 Ø21x76mm"]
["2.29.","Saugiklis automatinis 16A, E27",40,"vnt",2.65,106,"Saugiklis PAR 16A E27"]
["2.30.","Saugikliai PN-2 arba analogas, įvairaus amperažo. Korpusas 100 A.",40,"vnt",2.06,82.4,"Saugiklis PN-2 100A"]
["2.31.","Šyna 1P/12mod. KDN tipo 10mm²",30,"vnt",2.48,74.400000000000006,"KDN163A 10mm² hager"]
["2.32.","Šyna 1P/57(+-3)mod. KDN tipo 16mm²",20,"vnt",13.02,260.39999999999998,"KDN180B 16mm² hager"]
["2.33.","Šyna 3P/12mod. KDN tipo 16mm²",20,"vnt",4.96,{"$f":"IF(ISBLANK(E140),\"\", PRODUCT(C140,E140))","v":99.2},"KDN380A 16mm² hager"]
["2.34.","Šyna 3P/57mod. KDN tipo  16mm²",20,"vnt",16.53,330.6,"KDN380B 16mm² hager"]
["2.35.","Elektros instaliacijos moduliniai skydeliai. Potinkinis 8 modulių",20,"vnt",7.13,142.6,"ECM8PT 8mod. p/t"]
["2.36.","Elektros instaliacijos moduliniai skydeliai. Potinkinis 12 modulių",200,"vnt",8.94,1788,"ECM12PT 12mod. p/t"]
["2.37.","Elektros instaliacijos moduliniai skydeliai. Potinkinis 18 modulių",20,"vnt",11.15,223,"ECM18PT 18mod. p/t"]
["2.38.","Elektros instaliacijos moduliniai skydeliai. Potinkinis 24 modulių",20,"vnt",12.24,244.8,"ECM24PT 24mod. p/t"]
["2.39.","Elektros instaliacijos moduliniai skydeliai. Potinkinis 36 modulių",20,"vnt",16.23,324.60000000000002,"ECM36PT 36mod. p/t"]
["2.40.","Elektros instaliacijos moduliniai skydeliai. Virštinkinis 8 modulių",20,"vnt",6.29,125.8,"ECT8PO 8mod. v/t"]
["2.41.","Elektros instaliacijos moduliniai skydeliai. Virštinkinis 12 modulių",20,"vnt",8.58,171.6,"ECT12PO 12mod. v/t"]
["2.42.","Elektros instaliacijos moduliniai skydeliai. Virštinkinis 18 modulių",20,"vnt",9.98,199.60000000000002,"ECT18PO 18mod. v/t"]
["2.43.","Elektros instaliacijos moduliniai skydeliai. Virštinkinis 24 modulių",20,"vnt",11.95,239,"ECT24PO 24mod. v/t"]
["2.44.","Elektros instaliacijos moduliniai skydeliai. Virštinkinis 36 modulių",20,"vnt",15.31,306.2,"ECT36PO 36mod. v/t"]
["2.45.","Elektros instaliacijos moduliniai skydeliai. Virštinkinis 4 modulių",40,"vnt",1.39,55.599999999999994,"Skydelis S4/4mod. p/t IP40"]
["2.46.","Elektros instaliacijos moduliniai skydeliai. Potinkinis 4 modulių",30,"vnt",3.29,98.7,"Skydelis 4mod v/t IP40"]
["2.47.","Kontaktorius 230V 15kw",20,"vnt",9.8699999999999992,197.39999999999998,"NC1-32A 15kW 230V"]
["2.48.","Kontaktorius 230V 30kw",20,"vnt",27.13,542.6,"NC1-65A 30kW 230V"]
["2.49.","METALINĖ MONTAŽINĖ DĖŽĖ IP 65(+-5)",40,"vnt",25.56,1022.4,"Dėžė 300x300x200 IP65"]
["2.50.","Jungiklis paketinis 25A dvipolis , LK25R/1.828 (0-1)  tipo",30,"vnt",10.79,323.7,"Jungiklis CS 25A 2P 0-1"]
["2.51.","Jungiklis paketinis  25A tripolis 2-ų eilių,  LK25R/1.834 (1-0-2) tipo",30,"vnt",17.38,521.4,"Jungiklis CS 25A 3P 1-0-2"]
["2.52.","LED indikacinė lemputė balta",50,"vnt",1.31,65.5,"LED FP 230V AC/DC balta"]
["2.53.","LED indikacinė lemputė geltona",50,"vnt",1.32,66,"LED FP 230V AC/DC geltona"]
[null,null,null,null,"Suma be PVM",{"$f":"IF((SUMPRODUCT(--(F108:F160=\"\"))>0), \"\", SUM(F108:F160))","v":15477},{"$f":"IF((SUMPRODUCT(--(F108:F160=\"\"))>0), \"Neužpildytos visų objektų kainos\", \"\")","v":""}]
[null,null,null,null,"PVM suma",{"$f":"(F161*1.21)-F161","v":3250.1699999999983}]
[null,null,null,null,"Suma su PVM",{"$f":"IF(ISBLANK(F162), \"\", SUM(F161:F162))","v":18727.169999999998}]
[]
[]
[]
["3. DALIS","ŠVIESTUVAI, LEMPOS"]
[]
["Tiekėjo pasiūlymas:"]
["Nr.","Pavadinimas","Kiekis","Mato vienetas","Kaina be PVM, Eur","Suma be PVM, Eur","Siūlomi produktai"]
["3.","Šviestuvai, lempos"]
["3.1.","Šviestuvas LED, 4(+-2)W, IP44, paviršinis, evakuacinis, 3h, prie lubų, su lipduku",40,"vnt",18.5,{"$f":"IF(ISBLANK(E172),\"\", PRODUCT(C172,E172))","v":740}," ORION LED 100 3h"]
["3.2.","Stalinis šviestuvas, LED, aukštis iki 400(+-50) mm, reguliuojamas, pastatomas, padas 130 ± 20 mm",200,"vnt",17.46,3492,"LED ISTI 10W Kanlux"]
["3.3.","Šviestuvas LED į „Amstrong“ tipo lubas 600x600x50 IP20 baltas 4000K,4000(+-400) lm, ≥ A+",1000,"vnt",17.940000000000001,17940,"45W 4000K 600x600 įmontuojama"]
["3.4.","LED panelės rėmas, išoriniam montavimui 600x600 mm",300,"vnt",11.34,3402,"rėmas 600x600, išoriniam montavimui"]
["3.5.","Šviestuvas LED 20(+-3)W 60cm 4000K 2400(+-400)lm IP20",100,"vnt",8.1199999999999992,811.99999999999989,"LED 20W 60cm 4000K 2400lm IP20"]
["3.6.","Šviestuvas LED 40(+-5)W 120cm 4000K 4800(+-400)lm IP20",100,"vnt",10.87,1087,"LED 40W 120cm 4000K 4800lm IP20"]
["3.7.","Šviestuvas LED 30(+-5)W   60 cm 4000K 3000(+-600)lm IP65",100,"vnt",12.11,1211,"LED 30W LD-OMN060-30B 3000lm IP65"]
["3.8.","Šviestuvas LED 60(+-10)W 120cm 4000K  6000(+-1000)lm IP65",100,"vnt",19.47,1947,"LED 60W LD-OMN120-60B 6000lm IP65 "]
["3.9.","LED šviestuvas  su 1arba 2 rozetėmis, difuzorius matinis ,12(+-2) W, ≥900 Lm,  A+, švietimas  45o kampu , ne mažiau IP44",300,"vnt",29.62,8886,"LED su el.lizdu 14W 4000K 1200lm IP44"]
["3.10.","LED prožektorius 50(+-5)W 4000K 4000(+-400)lm IP65",50,"vnt",11.58,579,"50W 4000K 4000lm IP65"]
["3.11.","LED prožektorius 100(+-20)W 4000K 8000(+-1000)lm IP65",40,"vnt",24.36,974.4,"100W 4000K 8000lm IP65"]
["3.12.","LED prožektorius, IP65, 50 W, aliuminio korpuse, su judesio davikliu",40,"vnt",20.22,808.8,"50W su judesio davikliu IP65"]
["3.13.","LED šviestuvas apvalus, Ø285 mm, ≥1700 Lm, ≥A+, tvirtinamas į „ Amstrong“ tipo lubas, IP4(+-4)",200,"vnt",16.36,3272,"24W apvali, įmontuojama 4000K 2000lm"]
["3.14.","LED šviestuvas apvalus, Ø240mm, ≥1200 Lm, ≥A+, tvirtinamas į „ Amstrong“ tipo lubas,IP44(+-4)",200,"vnt",16.440000000000001,3288.0000000000005,"29W apvali, įmontuojama 4000K 2900lm"]
["3.15.","LED šviestuvas apvalus, Ø170mm, ≥1000 Lm, ≥A+, tvirtinamas į „ Amstrong“ tipo lubas,IP44(+-4)",200,"vnt",13.61,2722,"18W apvali, įmontuojama 4000K 1350lm"]
["3.16.","Kompaktinė lium. lempa 230V G24q3 4P 18W 4000K",300,"vnt",1.98,594,"18W/840/4P G24q-2 Philips"]
["3.17.","Kompaktinė lium. lempa G24d3 2P 18W 4000K",300,"vnt",1.98,594,"18W/840/2P G24d-2 Philips"]
["3.18.","Kompaktinė lium. lempa 230V G24q3 4P 26W 4000K",300,"vnt",2.23,669,"26W/840/4P G24Q-3 Philips"]
["3.19.","Kompaktinė lium. lempa G24d3 2P 26W 4000K",300,"vnt",2.23,669,"26W/840/2P G24d-3 Philips"]
["3.20.","Liuminiscencinė lempa T8 15W, L-45 cm",200,"vnt",2.81,562,"TLD 15W/840 Philips"]
["3.21.","Starteriai 4-65 W, 220/240 V",1000,"vnt",0.28999999999999998,290,"S10 4-65W Philips"]
["3.22.","Starteriai 4-22 W, 220/240 V",1000,"vnt",0.28999999999999998,290,"S2 4-22W Philips"]
[null,null,null,null,"Suma be PVM",{"$f":"IF((SUMPRODUCT(--(F172:F193=\"\"))>0), \"\", SUM(F172:F193))","v":54829.200000000004},{"$f":"IF((SUMPRODUCT(--(F172:F193=\"\"))>0), \"Neužpildytos visų objektų kainos\", \"\")","v":""}]
[null,null,null,null,"PVM suma",{"$f":"(F194*1.21)-F194","v":11514.132000000005}]
[null,null,null,null,"Suma su PVM",{"$f":"IF(ISBLANK(F195), \"\", SUM(F194:F195))","v":66343.332000000009}]
[]
[]
[]
["4. DALIS","ELEKTROS JUNGIKLIAI, ROZETĖS, INSTALIAVIMO DĖŽUTĖS"]
[]
["Tiekėjo pasiūlymas:"]
["Nr.","Pavadinimas","Kiekis","Mato vienetas","Kaina be PVM, Eur","Suma be PVM, Eur","Siūlomi produktai"]
["4.","Elektros jungikliai, rozetės, instaliavimo dėžutės"]
["4.1.","Dėžutė į gipso plokštę 1 vietos",400,"vnt",0.45,{"$f":"IF(ISBLANK(E205),\"\", PRODUCT(C205,E205))","v":180},"1 vietos ĮID-66-005"]
["4.2.","Blokas iš 2 jų paskirstymo dėžučių į gipsą",200,"vnt",0.84,168,"2 vietų ĮID2-66-003"]
["4.3.","Blokas iš 3 jų paskirstymo dėžučių į gipsą",200,"vnt",1.19,238,"3 vietų ĮID3-66-003"]
["4.4.","Paskirstymo dėžutė į gipsą pagilinta ≥Ǿ70 mm",400,"vnt",0.54,216,"ĮID-66-004 pagilinta"]
["4.5.","Dangtelis potinkinei dėžutei",600,"vnt",0.11,66,"Dangtelis spyruoklinis"]
["4.6.","Potinkinė paskirstymo dėžutė gili ≥Ǿ73 mm, su varžtais jungiklio pritvirtinimui, sujungiama",400,"vnt",0.14000000000000001,56.000000000000007,"PK60F p/t gili su varžt. sujungiama"]
["4.7.","Potinkinė paskirstymo dėžutė , su varžtais jungiklio pritvirtinimui, sujungiama",1000,"vnt",0.13,130,"PK60F p/t su varžt. sujungiama"]
["4.8.","Virštinkinė paskirstymo dėžutė (85x85x37)±10%  IP54",400,"vnt",0.72,288,"332-912 85x85x37 IP55"]
["4.9.","Virštinkinė paskirstymo dėžutė (100x100x50)±10% IP54",400,"vnt",1.27,508,"100x100x50 IP56"]
["4.10.","Rozetė  1F potinkinė su įžeminimo laidu, 10A, 250V~, be rėmelio",1400,"vnt",1.29,1806,"RP16-002-02D ST-150 baltas"]
["4.11.","Rozetė  1F potinkinė su įžeminimo laidu, 10A, 250V~ , dviguba, su rėmėliu",400,"vnt",2.41,964,"RP16-021 ST150 baltas"]
["4.12.","Jungiklis potinkinis vienpolis 10A, 250V~, IP20, be rėmelio",800,"vnt",1.52,1216,"P110-010-02D ST-150 baltas"]
["4.13.","Jungiklis potinkinis dvipolis 10A, 250V~, IP20, be rėmėlio",400,"vnt",1.82,728,"P510-020-02D ST-150 baltas"]
["4.14.","Jungikliai potinkinis kryžminis, be rėmėlio",40,"vnt",2.46,98.4,"P710-010-02 ST-150 baltas"]
["4.15.","Potinkinis lizdas su PC 1 pajungimu RJ-45, be rėmėlio",200,"vnt",4.82,964,"KLRJ45-15e1-02 ww "]
["4.16.","Potinkinis lizdas su PC 2-iems pajungimams RJ-45, be rėmėlio",200,"vnt",5.72,1144,"KLRJ45-25e2-02 ww "]
["4.17.","Potinkinis lizdas su PC+TEL  pajungimais, be rėmelio",200,"vnt",5.63,1126,"TKLRJ35e2-02 ww "]
["4.18.","Potinkinis lizdas su TV 1 pajungimu, be rėmėlio",150,"vnt",2.4900000000000002,373.50000000000006,"TVL01-02 ww "]
["4.19.","Rozetė  1F potinkinė su įžeminimo laidu, su dangteliu 10A, 250V~",400,"vnt",2.5299999999999998,1011.9999999999999,"RP16-003-02 ww "]
["4.20.","Vienos vietos  rėmelis",3000,"vnt",0.23,690,"Rėmelis R01D ST-150 baltas"]
["4.21.","Dviejų vietų rėmelis",1000,"vnt",0.41,410,"Rėmelis R02D ST-150 baltas"]
["4.22.","Trijų vietų rėmelis",400,"vnt",0.76,304,"Rėmelis R03D ST-150 baltas"]
["4.23.","Keturių vietų rėmelis",300,"vnt",1.0900000000000001,327,"Rėmelis R04D ST-150 baltas"]
["4.24.","Penkių vietų rėmelis",100,"vnt",1.73,173,"Rėmelis R05D ST-150 baltas"]
["4.25.","Dėžutė virštinkinė vienguba  balta",300,"vnt",0.55000000000000004,165,"Dėžutė 757.519.008 balta"]
["4.26.","Virštinkinė vienguba rozetė su įžeminimo laidu, 16 A",300,"vnt",1.41,423,"Lizdas PKL16-012 A/B"]
["4.27.","Virštinkinė dviguba rozetė su įžeminimo laidu, 16 A",400,"vnt",2.3199999999999998,927.99999999999989,"Lizdas PKL16-405 A/B"]
["4.28.","Virštinkinė vienguba rozetė su įžeminimo laidu, 16 A, ne mažiau IP44, su dangteliu",150,"vnt",1.64,245.99999999999997,"Lizdas su įž. Hermes IP44"]
["4.29.","Jungiklis viengubas virštinkinis , ne mažiau IP44",150,"vnt",1.59,238.5,"Jungiklis 1 klavišo Hermes IP44"]
["4.30.","Jungiklis dvigubas virštinkinis , ne mažiau IP44",100,"vnt",1.63,163,"Jungiklis 2 klavišų Hermes IP44"]
["4.31.","Lizdas kompiuterio 1 vietos virštinkinis",300,"vnt",1.35,405,"Lizdas RJ45 8P8C 1 vietų v/t"]
["4.32.","Lizdas kompiuterio 2 vietų virštinkinis",200,"vnt",2.0499999999999998,409.99999999999994,"Lizdas RJ45 8P8C 2 vietų v/t"]
["4.33.","Telefono lizdas 2 vietų virštinkinis EURO-2",300,"vnt",0.64,192,"Lizdas 2 vietų v/t EURO-2"]
["4.34.","Kištukas su įžeminimu 16A baltas",200,"vnt",0.52,104,"Kištukas su įž. 16A"]
["4.35.","Kištukas su įžeminimu kampinis 16A baltas",200,"vnt",0.49,98,"Kištukas su įž. 16A, kampinis"]
["4.36.","Kištukinis lizdas 5P 32A 400V p/t IP44",30,"vnt",2.39,71.7,"Lizdas 5P 32A stac. 3S-125"]
["4.37.","Kištukas 5P 32A 400V pernešamas",30,"vnt",2.2799999999999998,68.399999999999991,"Kištukas 5P 32A 3S-025"]
["4.38.","Ilgiklis 25 m ,4 lizdų metalinėje ritėje, 3x2,5 mm2 su įžeminimu",20,"vnt",63.98,1279.5999999999999,"Garant-S 25m, RR-F 3G1,5 IP44"]
["4.39.","Kištukinis lizdas 5P 16A 400V p/t IP44",30,"vnt",2.1800000000000002,65.400000000000006,"Lizdas 5P 16A stac. 3S-115"]
["4.40.","Kištukas 5P 16A 400V pernešamas ",30,"vnt",1.69,50.699999999999996,"Kištukas 5P 16A 3S-015"]
[null,null,null,null,"Suma be PVM",{"$f":"IF((SUMPRODUCT(--(F205:F244=\"\"))>0), \"\", SUM(F205:F244))","v":18094.200000000004},{"$f":"IF((SUMPRODUCT(--(F205:F244=\"\"))>0), \"Neužpildytos visų objektų kainos\", \"\")","v":""}]
[null,null,null,null,"PVM suma",{"$f":"(F245*1.21)-F245","v":3799.7819999999992}]
[null,null,null,null,"Suma su PVM",{"$f":"IF(ISBLANK(F246), \"\", SUM(F245:F246))","v":21893.982000000004}]

{"sheet":"Subtiekėjai ir priedai","index":1,"n_rows":100,"n_cols":11,"rows_kept":100,"cut":false,"hidden":false,"merged":[[52,0,52,3],[52,4,52,9],[43,1,43,6],[43,7,43,9],[44,1,44,6],[44,7,44,9],[45,1,45,6],[45,7,45,9],[47,0,47,9],[50,0,50,3],[50,4,50,9],[38,1,38,6],[38,7,38,9],[39,1,39,6],[39,7,39,9],[40,1,40,6],[40,7,40,9],[41,1,41,6],[41,7,41,9],[42,1,42,6],[42,7,42,9],[30,0,30,9],[32,0,32,9],[34,1,34,6],[34,7,34,9],[35,1,35,6],[35,7,35,9],[36,1,36,6],[36,7,36,9],[37,1,37,6],[37,7,37,9],[26,0,26,1],[26,2,26,4],[26,5,26,7],[26,8,26,9],[27,0,27,1],[27,2,27,4],[27,5,27,7],[27,8,27,9],[28,0,28,1],[28,2,28,4],[28,5,28,7],[28,8,28,9],[23,0,23,1],[23,2,23,4],[23,5,23,7],[23,8,23,9],[24,0,24,1],[24,2,24,4],[24,5,24,7],[24,8,24,9],[25,0,25,1],[25,2,25,4],[25,5,25,7],[25,8,25,9],[20,0,20,1],[20,2,20,4],[20,5,20,7],[20,8,20,9],[21,0,21,1],[21,2,21,4],[21,5,21,7],[21,8,21,9],[22,0,22,1],[22,2,22,4],[22,5,22,7],[22,8,22,9],[16,0,16,10],[18,0,18,1],[18,2,18,4],[18,5,18,7],[18,8,18,9],[19,0,19,1],[19,2,19,4],[19,5,19,7],[19,8,19,9],[12,0,12,1],[12,2,12,4],[12,5,12,7],[12,8,12,9],[13,0,13,1],[13,2,13,4],[13,5,13,7],[13,8,13,9],[14,0,14,1],[14,2,14,4],[14,5,14,7],[14,8,14,9],[9,0,9,1],[9,2,9,4],[9,5,9,7],[9,8,9,9],[10,0,10,1],[10,2,10,4],[10,5,10,7],[10,8,10,9],[11,0,11,1],[11,2,11,4],[11,5,11,7],[11,8,11,9],[6,0,6,1],[6,2,6,4],[6,5,6,7],[6,8,6,9],[7,0,7,1],[7,2,7,4],[7,5,7,7],[7,8,7,9],[8,0,8,1],[8,2,8,4],[8,5,8,7],[8,8,8,9],[1,0,2,10],[4,0,4,1],[4,2,4,4],[4,5,4,7],[4,8,4,9],[5,0,5,1],[5,2,5,4],[5,5,5,7],[5,8,5,9]]}
[]
["Ūkio subjektai (įskaitant kvazisubtiekėjus - fiziniai asmenys, kuriuos ketinama įdarbinti pirkimo laimėjimo atveju), kurių pajėgumais tiekėjas remiasi, kad atitiktų keliamus kvalifikacijos reikalavimus:"]
[]
[]
["Pavadinimas*",null,"Kodas, adresas",null,null,"Perduodami įsipareigojimai",null,null,"Perduodamų įsipareigojimų dalis nuo visos pirkimo sutarties (Eur arba %)",null,"Kval. Reikalavimo Nr."]
[]
[]
[]
[]
[]
[]
[]
[]
[]
[]
[]
["Subtiekėjams / subteikėjams / subrangovams numatomos perduoti veiklos (privaloma nurodyti) ir šių ūkio subjektų pavadinimai (jei žinomi):"]
[]
["Pavadinimas",null,"Kodas, adresas",null,null,"Perduodama veikla*",null,null,"Perduodamos veiklos dalis nuo visos pirkimo sutarties (Eur arba %)"]
[]
[]
[]
[]
[]
[]
[]
[]
[]
[]
[]
[]
[]
["Kartu su pasiūlymu pateikiami šie dokumentai:"]
[]
["Nr.","Dokumento  pavadinimas",null,null,null,null,null,"Dokumentas yra konfidencialus? Taip/Ne"]
[1,"Jungtinės veiklos kopija (jei taikoma)"]
[2,"Europos bendrasis viešųjų pirkimų dokumentas"]
[3,"Subtiekimo sutartis, ketinimų protokolas, preliminarios sutartys ar kiti dokumentai, patvirtinantys, kad laimėjus pirkimą tiekėjui bus prieinami kitų ūkio subjektų ištekliai (jei pasitelkiami kvalifikacijos atitikimui)"]
[]
[]
[]
[]
[]
[]
[]
[]
[]
["Pasiūlyme nurodyta Prekės kaina, išskyrus jos sudedamąsias dalis, subtiekėjai, taip pat kita informacija, kuri teisės aktų nustatyta tvarka turi būti skelbiama arba kitokiu būdu viešai prieinama visuomenei, nėra laikoma konfidencialia informacija. Konfidencialią informaciją sudaro, visų pirma, komercinė (gamybinė) paslaptis ir konfidencialieji pasiūlymų aspektai. Informacija, kurią viešai skelbti įpareigoja Lietuvos Respublikos įstatymai, negali būti tiekėjo nurodoma kaip konfidenciali, todėl, tiekėjui nurodžius tokią informaciją kaip konfidencialią, perkančioji organizacija turi teisę ją skelbti. Jei tiekėjas nenurodo konfidencialios informacijos, laikoma, kad konfidencialios informacijos tiekėjo pasiūlyme nėra. Vadovaujantis Informacijos viešinimo Centrinėje viešųjų pirkimų informacinėje sistemoje tvarkos aprašu, patvirtintu Viešųjų pirkimų tarnybos direktoriaus 2017 m. birželio 19 d. įsakymu Nr. 1S-91 „Dėl Informacijos viešinimo Centrinėje viešųjų pirkimų informacinėje sistemoje tvarkos aprašo patvirtinimo“, perkančioji organizacija laimėjusio dalyvio pasiūlymą, išskyrus informaciją, kurią tiekėjas nurodė kaip konfidencialią, paskelbs CVP IS."]
[]
[]
["Tiekėjo arba jo įgalioto asmens pareigų pavadinimas:"]
[]
["Pasirašančio asmens vardas ir pavardė:"]
[]
[]
[]
[]
[]
[]
[]
[]
[]
[]
[]
[]
[]
[]
[]
[]
[]
[]
[]
[]
[]
[]
[]
[]
[]
[]
[]
[]
[]
[]
[]
[]
[]
[]
[]
[]
[]
[]
[]
[]
[]
[]
[]
[]
[]
[]
["6740 2022-02-18 09:19:04"]